fUSD/lending_fUSD_20250205
["ID","MTS","AMOUNT","RATE_DAILY","PERIOD"]
[351799506,1738792247004,-500.0,0.0001082,2]
[351799508,1738792247013,-500.0,0.0001082,2]
[351799510,1738792247023,-455.31210368,0.0001082,2]
[351799511,1738792247032,-500.0,0.0001082,2]
[351799513,1738792247045,-500.0,0.0001082,2]
[351799515,1738792247054,-500.0,0.0001082,2]
[351799517,1738792247065,-500.0,0.0001082,2]
[351799519,1738792247076,-500.0,0.0001082,2]
[351799521,1738792247086,-341.97,0.0001082,2]
[351799523,1738792247096,-500.0,0.0001082,2]
[351799525,1738792247107,-500.0,0.0001082,2]
[351799527,1738792247119,-500.0,0.0001082,2]
[351799529,1738792247129,-491.43,0.0001082,2]
[351799531,1738792247140,-500.0,0.0001082,2]
[351799533,1738792247151,-500.0,0.0001082,2]
[351799535,1738792247162,-500.0,0.0001082,2]
[351799537,1738792247173,-1137.64,0.0001082,2]
[351799539,1738792247184,-500.0,0.0001082,2]
[351799541,1738792247195,-500.0,0.0001082,2]
[351799543,1738792247206,-500.0,0.0001082,2]
[351799545,1738792247217,-500.0,0.0001082,2]
[351799547,1738792247228,-500.0,0.0001082,2]
[351799549,1738792247244,-590.33,0.0001082,2]
[351799551,1738792247255,-500.0,0.0001082,2]
[351799553,1738792247265,-500.0,0.0001082,2]
[351799555,1738792247278,-500.0,0.0001082,2]
[351799557,1738792247290,-500.0,0.0001082,2]
[351799559,1738792247302,-500.0,0.0001082,2]
[351799561,1738792247313,-500.0,0.0001082,2]
[351799563,1738792247323,-500.0,0.0001082,2]
[351799565,1738792247333,-500.0,0.0001082,2]
[351799567,1738792247344,-500.0,0.0001082,2]
[351799569,1738792247354,-500.0,0.0001082,2]
[351799571,1738792247365,-500.0,0.0001082,2]
[351799573,1738792247375,-500.0,0.0001082,2]
[351799576,1738792247386,-500.0,0.0001082,2]
[351799577,1738792247396,-500.0,0.0001082,2]
[351799579,1738792247406,-500.0,0.0001082,2]
[351799581,1738792247415,-500.0,0.0001082,2]
[351799583,1738792247425,-500.0,0.0001082,2]
[351799585,1738792247433,-500.0,0.0001082,2]
[351799587,1738792247443,-500.0,0.0001082,2]
[351799589,1738792247453,-310.31,0.00010821,2]
[351799591,1738792247463,-208.10627339,0.00010821,2]
[351799593,1738792247472,-500.0,0.00010821,2]
[351799595,1738792247486,-500.0,0.00010821,2]
[351799597,1738792247496,-500.0,0.00010821,2]
[351799599,1738792247506,-500.0,0.00010821,2]
[351799601,1738792247515,-500.0,0.00010821,2]
[351799603,1738792247525,-272.76,0.00010821,2]
[351799605,1738792247534,-500.0,0.00010821,2]
[351799607,1738792247544,-500.0,0.00010821,2]
[351799609,1738792247553,-500.0,0.00010821,2]
[351799611,1738792247565,-500.0,0.00010821,2]
[351799613,1738792247575,-562.95,0.00010821,2]
[351799616,1738792247585,-500.0,0.00010821,2]
[351799618,1738792247595,-505.93,0.00010821,2]
[351799619,1738792247604,-622.06164141,0.00010821,2]
[351799621,1738792247614,-500.0,0.00010821,2]
[351799623,1738792247623,-314.54308011,0.00010821,2]
[351799626,1738792247634,-176.00458682,0.00010821,2]
[351799628,1738792247644,-438.55652312,0.00010821,2]
[351799630,1738792247654,-403.92864157,0.00010821,2]
[351799632,1738792247664,-580.45527341,0.00010824,2]
[351799633,1738792247674,-173.34649049,0.00010824,2]
[351799636,1738792247684,-286.39552833,0.00010824,2]
[351799638,1738792247695,-150.0,0.00010829,2]
[351799640,1738792247705,-580.45527341,0.00010836,2]
[351799641,1738792247714,-173.34649049,0.00010836,2]
[351799644,1738792247726,-286.39552833,0.00010836,2]
[351799646,1738792247738,-152.202475,0.0001084,2]
[351799648,1738792247747,-156.731078,0.0001084,2]
[351799650,1738792247755,-580.45527341,0.00010848,2]
[351799652,1738792247764,-173.34649049,0.00010848,2]
[351799653,1738792247771,-286.39552833,0.00010848,2]
[351799655,1738792247780,-150.0,0.00010857,2]
[351799657,1738792247789,-580.45527341,0.00010861,2]
[351799659,1738792247797,-173.34649049,0.00010861,2]
[351799661,1738792247805,-286.39552833,0.00010861,2]
[351799663,1738792247813,-580.45527341,0.00010873,2]
[351799665,1738792247820,-173.34649049,0.00010873,2]
[351799667,1738792247830,-286.39552833,0.00010873,2]
[351799669,1738792247837,-580.45527341,0.00010885,2]
[351799671,1738792247845,-173.34649049,0.00010885,2]
[351799673,1738792247853,-286.39552833,0.00010885,2]
[351799675,1738792247862,-150.0,0.00010886,2]
[351799677,1738792247869,-580.45527341,0.00010897,2]
[351799679,1738792247878,-173.34649049,0.00010897,2]
[351799681,1738792247886,-286.39552833,0.00010897,2]
[351799683,1738792247894,-580.45527341,0.00010909,2]
[351799685,1738792247902,-173.34649049,0.00010909,2]
[351799687,1738792247910,-286.39552833,0.00010909,2]
[351799689,1738792247917,-150.0,0.00010914,2]
[351799690,1738792247924,-580.45527341,0.00010921,2]
[351799692,1738792247933,-173.34649049,0.00010921,2]
[351799694,1738792247942,-286.39552833,0.00010921,2]
[351799696,1738792247949,-580.45527341,0.00010933,2]
[351799698,1738792247958,-173.34649049,0.00010933,2]
[351799700,1738792247966,-286.39552833,0.00010933,2]
[351799702,1738792247977,-150.0,0.00010943,2]
[351799704,1738792247987,-580.45527341,0.00010945,2]
[351799706,1738792247997,-173.34649049,0.00010945,2]
[351799708,1738792248007,-286.39552833,0.00010945,2]
[351799710,1738792248017,-500.0,0.00010956,2]
[351799712,1738792248030,-500.0,0.00010957,2]
[351799714,1738792248040,-165.3,0.00010957,2]
[351799717,1738792248051,-500.0,0.00010957,2]
[351799719,1738792248061,-500.0,0.00010957,2]
[351799720,1738792248072,-500.0,0.00010957,2]
[351799722,1738792248082,-500.0,0.00010957,2]
[351799724,1738792248093,-511.15955291,0.00010957,2]
[351799726,1738792248105,-500.0,0.00010957,2]
[351799729,1738792248116,-639.56,0.00010957,2]
[351799731,1738792248127,-500.0,0.00010957,2]
[351799733,1738792248139,-500.0,0.00010957,2]
[351799735,1738792248149,-500.0,0.00010957,2]
[351799737,1738792248159,-500.0,0.00010957,2]
[351799739,1738792248169,-500.0,0.00010957,2]
[351799741,1738792248179,-1037.66,0.00010957,2]
[351799743,1738792248188,-500.0,0.00010957,2]
[351799744,1738792248198,-500.0,0.00010957,2]
[351799746,1738792248208,-500.0,0.00010957,2]
[351799748,1738792248219,-500.0,0.00010957,2]
[351799750,1738792248229,-500.0,0.00010957,2]
[351799752,1738792248240,-527.12,0.00010957,2]
[351799754,1738792248249,-500.0,0.00010957,2]
[351799756,1738792248259,-500.0,0.00010957,2]
[351799758,1738792248270,-500.0,0.00010957,2]
[351799760,1738792248279,-500.0,0.00010957,2]
[351799762,1738792248289,-781.52,0.00010957,2]
[351799764,1738792248299,-500.0,0.00010957,2]
[351799766,1738792248310,-500.0,0.00010957,2]
[351799768,1738792248321,-500.0,0.00010957,2]
[351799770,1738792248331,-500.0,0.00010957,2]
[351799772,1738792248341,-505.74,0.00010957,2]
[351799774,1738792248351,-271.05,0.00010957,2]
[351799776,1738792248362,-500.0,0.00010957,2]
[351799778,1738792248371,-500.0,0.00010957,2]
[351799780,1738792248381,-500.0,0.00010957,2]
[351799782,1738792248390,-500.0,0.00010957,2]
[351799784,1738792248399,-500.0,0.00010957,2]
[351799786,1738792248409,-500.0,0.00010957,2]
[351799788,1738792248419,-500.0,0.00010957,2]
[351799790,1738792248429,-500.0,0.00010957,2]
[351799792,1738792248438,-500.0,0.00010957,2]
[351799794,1738792248448,-500.0,0.00010957,2]
[351799796,1738792248458,-500.0,0.00010957,2]
[351799798,1738792248468,-500.0,0.00010957,2]
[351799800,1738792248478,-500.0,0.00010957,2]
[351799802,1738792248490,-1137.64,0.00010957,2]
[351799804,1738792248500,-500.0,0.00010957,2]
[351799806,1738792248510,-500.0,0.00010957,2]
[351799808,1738792248521,-500.0,0.00010957,2]
[351799810,1738792248531,-500.0,0.00010957,2]
[351799812,1738792248541,-500.0,0.00010957,2]
[351799814,1738792248552,-590.33,0.00010957,2]
[351799816,1738792248562,-500.0,0.00010957,2]
[351799818,1738792248572,-500.0,0.00010957,2]
[351799820,1738792248582,-500.0,0.00010957,2]
[351799822,1738792248593,-500.0,0.00010957,2]
[351799824,1738792248605,-500.0,0.00010957,2]
[351799826,1738792248615,-500.0,0.00010957,2]
[351799828,1738792248625,-500.0,0.00010957,2]
[351799830,1738792248635,-500.0,0.00010957,2]
[351799832,1738792248645,-500.0,0.00010957,2]
[351799834,1738792248655,-500.0,0.00010957,2]
[351799836,1738792248665,-500.0,0.00010957,2]
[351799838,1738792248675,-500.0,0.00010957,2]
[351799840,1738792248686,-500.0,0.00010957,2]
[351799842,1738792248695,-500.0,0.00010957,2]
[351799844,1738792248704,-500.0,0.00010957,2]
[351799846,1738792248713,-500.0,0.00010957,2]
[351799848,1738792248723,-500.0,0.00010957,2]
[351799850,1738792248735,-500.0,0.00010957,2]
[351799852,1738792248745,-500.0,0.00010957,2]
[351799854,1738792248755,-580.45527341,0.00010958,2]
[351799855,1738792248765,-173.34649049,0.00010958,2]
[351799857,1738792248775,-286.39552833,0.00010958,2]
[351799859,1738792248786,-626.09,0.00010958,2]
[351799861,1738792248797,-500.0,0.00010958,2]
[351799863,1738792248807,-500.0,0.00010958,2]
[351799865,1738792248817,-500.0,0.00010958,2]
[351799867,1738792248827,-564.94272863,0.00010958,2]
[351799869,1738792248836,-500.0,0.00010958,2]
[351799871,1738792248846,-500.0,0.00010958,2]
[351799873,1738792248856,-500.0,0.00010958,2]
[351799875,1738792248867,-500.0,0.00010958,2]
[351799877,1738792248877,-369.57,0.00010958,2]
[351799879,1738792248887,-500.0,0.00010958,2]
[351799881,1738792248898,-580.45527341,0.0001097,2]
[351799883,1738792248909,-173.34649049,0.0001097,2]
[351799885,1738792248919,-286.39552833,0.0001097,2]
[351799887,1738792248931,-150.0,0.00010971,2]
[351799889,1738792248941,-236.52,0.00010974,2]
[351799891,1738792248952,-156.731078,0.00010977,2]
[351799893,1738792248963,-580.45527341,0.00010982,2]
[351799895,1738792248973,-173.34649049,0.00010982,2]
[351799897,1738792248990,-286.39552833,0.00010982,2]
[351799899,1738792248999,-580.45527341,0.00010994,2]
[351799901,1738792249009,-173.34649049,0.00010994,2]
[351799903,1738792249019,-286.39552833,0.00010994,2]
[351799905,1738792249028,-150.0,0.00011,2]
[351799907,1738792249042,-580.45527341,0.00011006,2]
[351799909,1738792249052,-173.34649049,0.00011006,2]
[351799911,1738792249061,-286.39552833,0.00011006,2]
[351799913,1738792249071,-580.45527341,0.00011018,2]
[351799915,1738792249082,-173.34649049,0.00011018,2]
[351799917,1738792249091,-286.39552833,0.00011018,2]
[351799919,1738792249100,-150.0,0.00011029,2]
[351799921,1738792249110,-580.45527341,0.0001103,2]
[351799923,1738792249123,-173.34649049,0.0001103,2]
[351799925,1738792249133,-286.39552833,0.0001103,2]
[351799927,1738792249143,-1546.66,0.00011041,2]
[351799929,1738792249152,-878.82,0.00011041,2]
[351799931,1738792249163,-774.8,0.00011041,2]
[351799933,1738792249174,-439.5,0.00011041,2]
[351799935,1738792249184,-774.8,0.00011041,2]
[351799937,1738792249197,-227.32,0.00011041,2]
[351799939,1738792249207,-774.2,0.00011041,2]
[351799940,1738792249216,-439.5,0.00011041,2]
[351799943,1738792249227,-439.5,0.00011041,2]
[351799945,1738792249242,-774.8,0.00011041,2]
[351799947,1738792249255,-774.8,0.00011041,2]
[351799949,1738792249264,-439.5,0.00011041,2]
[351799951,1738792249274,-774.8,0.00011041,2]
[351799953,1738792249283,-439.5,0.00011041,2]
[351799955,1738792249293,-774.8,0.00011041,2]
[351799957,1738792249303,-439.5,0.00011041,2]
[351799959,1738792249313,-580.45527341,0.00011042,2]
[351799961,1738792249323,-173.34649049,0.00011042,2]
[351799963,1738792249333,-286.39552833,0.00011042,2]
[351799965,1738792249343,-580.45527341,0.00011055,2]
[351799967,1738792249353,-173.34649049,0.00011055,2]
[351799969,1738792249363,-286.39552833,0.00011055,2]
[351799971,1738792249372,-150.0,0.00011057,2]
[351799973,1738792249381,-580.45527341,0.00011067,2]
[351799975,1738792249391,-173.34649049,0.00011067,2]
[351799977,1738792249400,-286.39552833,0.00011067,2]
[351799978,1738792249410,-580.45527341,0.00011079,2]
[351799980,1738792249419,-173.34649049,0.00011079,2]
[351799982,1738792249429,-286.39552833,0.00011079,2]
[351799984,1738792249438,-150.0,0.00011086,2]
[351799986,1738792249448,-580.45527341,0.00011091,2]
[351799988,1738792249457,-173.34649049,0.00011091,2]
[351799990,1738792249466,-286.39552833,0.00011091,2]
[351799992,1738792249476,-335.91108233,0.00011094,2]
[351799994,1738792249487,-500.0,0.00011094,2]
[351799996,1738792249496,-500.0,0.00011094,2]
[351799998,1738792249506,-500.0,0.00011094,2]
[351800000,1738792249516,-626.18531054,0.00011094,2]
[351800002,1738792249526,-500.0,0.00011094,2]
[351800004,1738792249535,-500.0,0.00011094,2]
[351800006,1738792249544,-500.0,0.00011094,2]
[351800008,1738792249555,-500.0,0.00011094,2]
[351800010,1738792249564,-500.0,0.00011094,2]
[351800012,1738792249573,-500.0,0.00011094,2]
[351800014,1738792249583,-1037.66,0.00011094,2]
[351800016,1738792249594,-500.0,0.00011094,2]
[351800018,1738792249603,-500.0,0.00011094,2]
[351800020,1738792249612,-292.43,0.00011094,2]
[351800022,1738792249622,-500.0,0.00011094,2]
[351800024,1738792249632,-500.0,0.00011094,2]
[351800026,1738792249641,-500.0,0.00011094,2]
[351800028,1738792249651,-500.0,0.00011094,2]
[351800030,1738792249660,-500.0,0.00011094,2]
[351800032,1738792249669,-781.52,0.00011094,2]
[351800034,1738792249679,-346.8,0.00011094,2]
[351800036,1738792249688,-500.0,0.00011094,2]
[351800038,1738792249697,-500.0,0.00011094,2]
[351800040,1738792249707,-500.0,0.00011094,2]
[351800042,1738792249716,-505.74,0.00011094,2]
[351800044,1738792249726,-500.0,0.00011094,2]
[351800046,1738792249736,-500.0,0.00011094,2]
[351800048,1738792249746,-264.13,0.00011094,2]
[351800050,1738792249755,-500.0,0.00011094,2]
[351800052,1738792249764,-500.0,0.00011094,2]
[351800054,1738792249774,-500.0,0.00011094,2]
[351800056,1738792249784,-500.0,0.00011094,2]
[351800058,1738792249793,-500.0,0.00011094,2]
[351800060,1738792249803,-500.0,0.00011094,2]
[351800062,1738792249812,-500.0,0.00011094,2]
[351800064,1738792249821,-500.0,0.00011094,2]
[351800066,1738792249831,-500.0,0.00011094,2]
[351800068,1738792249840,-500.0,0.00011094,2]
[351800070,1738792249849,-1137.64,0.00011094,2]
[351800072,1738792249858,-500.0,0.00011094,2]
[351800074,1738792249867,-500.0,0.00011094,2]
[351800076,1738792249876,-500.0,0.00011094,2]
[351800077,1738792249885,-500.0,0.00011094,2]
[351800079,1738792249895,-500.0,0.00011094,2]
[351800081,1738792249905,-590.33,0.00011094,2]
[351800083,1738792249914,-500.0,0.00011094,2]
[351800085,1738792249923,-500.0,0.00011094,2]
[351800087,1738792249932,-178.24672519,0.00011094,2]
[351800089,1738792249941,-500.0,0.00011094,2]
[351800091,1738792249951,-426.5869956,0.00011094,2]
[351800093,1738792249960,-500.0,0.00011094,2]
[351800099,1738792250085,-500.0,0.00011094,2]
[351800100,1738792250111,-649.07,0.00011094,2]
[351800101,1738792250120,-500.0,0.00011094,2]
[351800102,1738792250129,-500.0,0.00011094,2]
[351800103,1738792250138,-500.0,0.00011094,2]
[351800105,1738792250148,-500.0,0.00011094,2]
[351800106,1738792250157,-500.0,0.00011094,2]
[351800108,1738792250166,-500.0,0.00011094,2]
[351800110,1738792250176,-500.0,0.00011094,2]
[351800112,1738792250186,-500.0,0.00011094,2]
[351800114,1738792250196,-500.0,0.00011094,2]
[351800116,1738792250205,-500.0,0.00011094,2]
[351800118,1738792250214,-500.0,0.00011094,2]
[351800120,1738792250224,-337.65,0.00011095,2]
[351800122,1738792250234,-246.83,0.00011095,2]
[351800124,1738792250243,-467.21,0.00011095,2]
[351800126,1738792250253,-500.0,0.00011095,2]
[351800128,1738792250262,-209.52,0.00011095,2]
[351800130,1738792250271,-500.0,0.00011095,2]
[351800132,1738792250281,-311.46,0.00011095,2]
[351800134,1738792250290,-500.0,0.00011095,2]
[351800136,1738792250300,-439.5,0.00011096,2]
[351800138,1738792250310,-774.8,0.00011096,2]
[351800140,1738792250319,-200.0,0.000111,4]
[351800142,1738792250329,-580.45527341,0.00011103,2]
[351800144,1738792250338,-173.34649049,0.00011103,2]
[351800146,1738792250348,-286.39552833,0.00011103,2]
[351800148,1738792250358,-152.202475,0.00011114,2]
[351800150,1738792250367,-150.0,0.00011114,2]
[351800152,1738792250376,-580.45527341,0.00011115,2]
[351800154,1738792250386,-173.34649049,0.00011115,2]
[351800156,1738792250395,-286.39552833,0.00011115,2]
[351800158,1738792250405,-4000.0,0.00011126,2]
[351800160,1738792250414,-580.45527341,0.00011127,2]
[351800162,1738792250424,-173.34649049,0.00011127,2]
[351800164,1738792250433,-286.39552833,0.00011127,2]
[351800165,1738792250442,-152.0,0.00011137,3]
[351800167,1738792250451,-580.45527341,0.00011139,2]
[351800169,1738792250461,-173.34649049,0.00011139,2]
[351800171,1738792250471,-286.39552833,0.00011139,2]
[351800173,1738792250480,-150.0,0.00011143,2]
[351800175,1738792250491,-580.45527341,0.00011152,2]
[351800177,1738792250500,-173.34649049,0.00011152,2]
[351800179,1738792250510,-286.39552833,0.00011152,2]
[351800181,1738792250519,-580.45527341,0.00011164,2]
[351800183,1738792250529,-173.34649049,0.00011164,2]
[351800185,1738792250538,-286.39552833,0.00011164,2]
[351800187,1738792250547,-150.0,0.00011171,2]
[351800189,1738792250556,-580.45527341,0.00011176,2]
[351800191,1738792250565,-173.34649049,0.00011176,2]
[351800193,1738792250574,-286.39552833,0.00011176,2]
[351800195,1738792250584,-438.52,0.00011178,2]
[351800197,1738792250594,-150.0,0.00011178,2]
[351800199,1738792250603,-300.0,0.00011178,2]
[351800201,1738792250612,-302.56,0.00011178,2]
[351800203,1738792250622,-300.0,0.00011178,2]
[351800205,1738792250631,-302.75,0.00011178,2]
[351800207,1738792250641,-150.0,0.00011178,2]
[351800209,1738792250649,-438.59,0.00011178,2]
[351800211,1738792250658,-438.59,0.00011178,2]
[351800213,1738792250667,-150.0,0.00011178,2]
[351800215,1738792250677,-438.59,0.00011178,2]
[351800217,1738792250686,-150.0,0.00011178,2]
[351800219,1738792250695,-300.0,0.00011178,2]
[351800220,1738792250704,-300.0,0.00011178,2]
[351800222,1738792250714,-150.0,0.00011178,2]
[351800224,1738792250724,-438.59,0.00011178,2]
[351800226,1738792250735,-230.41,0.00011178,2]
[351800228,1738792250744,-301.61,0.00011178,2]
[351800230,1738792250753,-460.54,0.00011178,2]
[351800232,1738792250762,-150.0,0.00011178,2]
[351800234,1738792250771,-150.0,0.00011178,2]
[351800236,1738792250781,-150.0,0.00011178,2]
[351800238,1738792250790,-877.04,0.00011178,2]
[351800240,1738792250799,-150.0,0.00011178,2]
[351800242,1738792250809,-438.59,0.00011178,2]
[351800244,1738792250819,-150.0,0.00011178,2]
[351800246,1738792250829,-150.0,0.00011178,2]
[351800248,1738792250839,-150.0,0.00011178,2]
[351800250,1738792250848,-150.0,0.00011178,2]
[351800252,1738792250857,-150.0,0.00011178,2]
[351800254,1738792250866,-150.0,0.00011178,2]
[351800256,1738792250876,-150.0,0.00011178,2]
[351800258,1738792250885,-438.59,0.00011178,2]
[351800260,1738792250894,-150.0,0.00011178,2]
[351800262,1738792250903,-580.45527341,0.00011188,2]
[351800264,1738792250913,-173.34649049,0.00011188,2]
[351800266,1738792250922,-286.39552833,0.00011188,2]
[351800268,1738792250931,-580.45527341,0.000112,2]
[351800270,1738792250940,-173.34649049,0.000112,2]
[351800271,1738792250949,-286.39552833,0.000112,2]
[351800273,1738792250959,-150.0,0.000112,2]
[351800275,1738792250968,-500.0,0.000112,4]
[351800277,1738792250978,-580.45527341,0.00011212,2]
[351800279,1738792250988,-173.34649049,0.00011212,2]
[351800282,1738792250999,-286.39552833,0.00011212,2]
[351800284,1738792251009,-580.45527341,0.00011224,2]
[351800286,1738792251018,-173.34649049,0.00011224,2]
[351800287,1738792251029,-286.39552833,0.00011224,2]
[351800289,1738792251043,-150.0,0.00011229,2]
[351800291,1738792251052,-500.0,0.00011231,2]
[351800294,1738792251062,-500.0,0.00011231,2]
[351800296,1738792251072,-196.4,0.00011231,2]
[351800298,1738792251082,-500.0,0.00011231,2]
[351800299,1738792251091,-500.0,0.00011231,2]
[351800301,1738792251100,-380.41047339,0.00011231,2]
[351800303,1738792251111,-500.0,0.00011231,2]
[351800306,1738792251121,-500.0,0.00011231,2]
[351800307,1738792251132,-273.7,0.00011231,2]
[351800309,1738792251141,-1037.66,0.00011231,2]
[351800311,1738792251151,-500.0,0.00011231,2]
[351800313,1738792251161,-500.0,0.00011231,2]
[351800315,1738792251170,-500.0,0.00011231,2]
[351800318,1738792251180,-500.0,0.00011231,2]
[351800319,1738792251190,-500.0,0.00011231,2]
[351800321,1738792251199,-500.0,0.00011231,2]
[351800323,1738792251208,-500.0,0.00011231,2]
[351800326,1738792251219,-781.52,0.00011231,2]
[351800327,1738792251237,-500.0,0.00011231,2]
[351800329,1738792251246,-500.0,0.00011231,2]
[351800331,1738792251256,-597.73,0.00011231,2]
[351800333,1738792251265,-505.74,0.00011231,2]
[351800335,1738792251275,-500.0,0.00011231,2]
[351800337,1738792251284,-500.0,0.00011231,2]
[351800339,1738792251294,-248.1,0.00011231,2]
[351800341,1738792251303,-500.0,0.00011231,2]
[351800344,1738792251313,-500.0,0.00011231,2]
[351800345,1738792251323,-500.0,0.00011231,2]
[351800348,1738792251332,-500.0,0.00011231,2]
[351800349,1738792251342,-500.0,0.00011231,2]
[351800351,1738792251351,-500.0,0.00011231,2]
[351800354,1738792251360,-500.0,0.00011231,2]
[351800356,1738792251370,-500.0,0.00011231,2]
[351800357,1738792251379,-500.0,0.00011231,2]
[351800360,1738792251389,-1137.64,0.00011231,2]
[351800362,1738792251399,-500.0,0.00011231,2]
[351800363,1738792251408,-500.0,0.00011231,2]
[351800365,1738792251418,-500.0,0.00011231,2]
[351800367,1738792251428,-500.0,0.00011231,2]
[351800369,1738792251437,-500.0,0.00011231,2]
[351800371,1738792251446,-590.33,0.00011231,2]
[351800373,1738792251456,-500.0,0.00011231,2]
[351800375,1738792251465,-500.0,0.00011231,2]
[351800377,1738792251474,-500.0,0.00011231,2]
[351800379,1738792251485,-463.56,0.00011231,2]
[351800381,1738792251494,-500.0,0.00011231,2]
[351800383,1738792251503,-500.0,0.00011231,2]
[351800385,1738792251513,-500.0,0.00011231,2]
[351800387,1738792251523,-500.0,0.00011231,2]
[351800389,1738792251532,-500.0,0.00011231,2]
[351800391,1738792251542,-500.0,0.00011231,2]
[351800393,1738792251552,-500.0,0.00011231,2]
[351800395,1738792251561,-500.0,0.00011231,2]
[351800397,1738792251571,-500.0,0.00011231,2]
[351800399,1738792251580,-500.0,0.00011231,2]
[351800401,1738792251590,-321.04456366,0.00011231,2]
[351800403,1738792251599,-500.0,0.00011231,2]
[351800405,1738792251608,-500.0,0.00011232,2]
[351800407,1738792251618,-500.0,0.00011232,2]
[351800409,1738792251627,-500.0,0.00011232,2]
[351800411,1738792251637,-150.0,0.00011233,2]
[351800413,1738792251647,-438.59,0.00011233,2]
[351800415,1738792251656,-213.08,0.00011233,2]
[351800417,1738792251666,-580.45527341,0.00011236,2]
[351800419,1738792251676,-173.34649049,0.00011236,2]
[351800422,1738792251686,-286.39552833,0.00011236,2]
[351800424,1738792251696,-494.97620355,0.00011241,2]
[351800425,1738792251706,-580.45527341,0.00011248,2]
[351800427,1738792251715,-173.34649049,0.00011248,2]
[351800429,1738792251725,-286.39552833,0.00011248,2]
[351800431,1738792251734,-152.202475,0.00011251,2]
[351800433,1738792251743,-156.731078,0.00011251,2]
[351800435,1738792251753,-2431.351,0.00011256,2]
[351800437,1738792251763,-175.201,0.00011256,2]
[351800439,1738792251773,-150.0,0.00011257,2]
[351800441,1738792251782,-580.45527341,0.00011261,2]
[351800443,1738792251791,-173.34649049,0.00011261,2]
[351800445,1738792251801,-286.39552833,0.00011261,2]
[351800447,1738792251810,-580.45527341,0.00011273,2]
[351800449,1738792251820,-173.34649049,0.00011273,2]
[351800452,1738792251830,-286.39552833,0.00011273,2]
[351800454,1738792251840,-580.45527341,0.00011285,2]
[351800455,1738792251849,-173.34649049,0.00011285,2]
[351800457,1738792251859,-286.39552833,0.00011285,2]
[351800459,1738792251868,-150.0,0.00011286,2]
[351800461,1738792251879,-580.45527341,0.00011297,2]
[351800463,1738792251889,-173.34649049,0.00011297,2]
[351800465,1738792251898,-286.39552833,0.00011297,2]
[351800467,1738792251908,-800.0,0.000113,4]
[351800468,1738792251917,-580.45527341,0.00011309,2]
[351800469,1738792251927,-173.34649049,0.00011309,2]
[351800470,1738792251936,-286.39552833,0.00011309,2]
[351800471,1738792251946,-150.0,0.00011314,2]
[351800473,1738792251955,-580.45527341,0.00011321,2]
[351800475,1738792251966,-173.34649049,0.00011321,2]
[351800477,1738792251975,-286.39552833,0.00011321,2]
[351800479,1738792251984,-580.45527341,0.00011333,2]
[351800481,1738792251994,-173.34649049,0.00011333,2]
[351800483,1738792252003,-286.39552833,0.00011333,2]
[351800485,1738792252013,-150.0,0.00011343,2]
[351800487,1738792252023,-580.45527341,0.00011345,2]
[351800489,1738792252034,-173.34649049,0.00011345,2]
[351800491,1738792252045,-286.39552833,0.00011345,2]